[Event "Early-Titled-Tuesday-Blitz-August-29-2023"]
[Site "Chess.com"]
[Date "2023.08.29"]
[Round "11"]
[White "ajedrezhoy"]
[Black "Vesper2018"]
[Result "0-1"]
[WhiteElo "2419"]
[BlackElo "2586"]
[TimeControl "180+1"]
[EndTime "10:03:57 PDT"]
[Termination "Vesper2018 won on time"]

1. c4 {[%clk 0:03:00.9]} 1... e5 {[%clk 0:02:59.3]} 2. Nc3 {[%clk 0:02:59.4]}
2... d6 {[%clk 0:02:59.6]} 3. Nf3 {[%clk 0:02:57.2]} 3... f5 {[%clk 0:02:58.7]}
4. d4 {[%clk 0:02:57.3]} 4... e4 {[%clk 0:02:58.6]} 5. Ng5 {[%clk 0:02:56.6]}
5... Be7 {[%clk 0:02:56.8]} 6. Nh3 {[%clk 0:02:56.7]} 6... Nf6 {[%clk
0:02:57.4]} 7. Bg5 {[%clk 0:02:56.1]} 7... O-O {[%clk 0:02:53.8]} 8. e3 {[%clk
0:02:56.2]} 8... c5 {[%clk 0:02:53.6]} 9. Be2 {[%clk 0:02:53]} 9... cxd4 {[%clk
0:02:48.3]} 10. Qxd4 {[%clk 0:02:48.8]} 10... Nc6 {[%clk 0:02:45.8]} 11. Qd2
{[%clk 0:02:48.7]} 11... Ne5 {[%clk 0:02:42.8]} 12. Nf4 {[%clk 0:02:42.7]} 12...
h6 {[%clk 0:02:30.6]} 13. Bxf6 {[%clk 0:02:42.1]} 13... Bxf6 {[%clk 0:02:31]}
14. O-O {[%clk 0:02:41.4]} 14... g5 {[%clk 0:02:29.1]} 15. Nfd5 {[%clk
0:02:40.7]} 15... Bg7 {[%clk 0:02:28.9]} 16. Rad1 {[%clk 0:02:28.9]} 16... Be6
{[%clk 0:02:24.7]} 17. b3 {[%clk 0:02:25.1]} 17... Rf7 {[%clk 0:02:21.7]} 18.
Nb4 {[%clk 0:02:24.4]} 18... Rd7 {[%clk 0:02:20.7]} 19. Nc2 {[%clk 0:02:22.5]}
19... Bf7 {[%clk 0:02:16.4]} 20. Nd4 {[%clk 0:02:22.3]} 20... Qf6 {[%clk
0:02:06.8]} 21. f3 {[%clk 0:02:19]} 21... exf3 {[%clk 0:02:01.4]} 22. Bxf3
{[%clk 0:02:18.3]} 22... Nxf3+ {[%clk 0:01:37.7]} 23. Rxf3 {[%clk 0:02:12.5]}
23... Bg6 {[%clk 0:01:36.4]} 24. Rdf1 {[%clk 0:02:03.8]} 24... f4 {[%clk
0:01:33.7]} 25. Nd5 {[%clk 0:02:01.4]} 25... Qe5 {[%clk 0:01:30.3]} 26. Nb5
{[%clk 0:01:50.1]} 26... fxe3 {[%clk 0:01:14.6]} 27. Rxe3 {[%clk 0:01:49.5]}
27... Qb2 {[%clk 0:01:14.8]} 28. Qxb2 {[%clk 0:01:41.2]} 28... Bxb2 {[%clk
0:01:14.2]} 29. Nf6+ {[%clk 0:01:36.8]} 29... Bxf6 {[%clk 0:01:13.4]} 30. Rxf6
{[%clk 0:01:36.6]} 30... Bb1 {[%clk 0:01:08.7]} 31. a4 {[%clk 0:01:29.5]} 31...
d5 {[%clk 0:01:04]} 32. cxd5 {[%clk 0:01:20.8]} 32... Rxd5 {[%clk 0:01:01.2]}
33. Nc3 {[%clk 0:01:20.8]} 33... Rd3 {[%clk 0:00:58.9]} 34. Rxd3 {[%clk
0:01:18.1]} 34... Bxd3 {[%clk 0:00:59]} 35. Rxh6 {[%clk 0:01:18]} 35... Bc2
{[%clk 0:00:57.5]} 36. Kf2 {[%clk 0:01:08.8]} 36... Rc8 {[%clk 0:00:54]} 37. Nd5
{[%clk 0:01:07.1]} 37... Kg7 {[%clk 0:00:53.9]} 38. Rh3 {[%clk 0:01:03.3]} 38...
Rd8 {[%clk 0:00:50]} 39. Nb4 {[%clk 0:01:00]} 39... Rd2+ {[%clk 0:00:47.8]} 40.
Kf1 {[%clk 0:00:43]} 40... Bg6 {[%clk 0:00:43.5]} 41. Re3 {[%clk 0:00:41.1]}
41... Rb2 {[%clk 0:00:37.9]} 42. Nd5 {[%clk 0:00:31]} 42... Bf7 {[%clk
0:00:36.6]} 43. Nc7 {[%clk 0:00:20.7]} 43... Bxb3 {[%clk 0:00:34.8]} 44. Ne6+
{[%clk 0:00:17.9]} 44... Kf6 {[%clk 0:00:31.1]} 45. Nc5 {[%clk 0:00:17.1]} 45...
Bc4+ {[%clk 0:00:30.8]} 46. Kg1 {[%clk 0:00:15.4]} 46... Bd5 {[%clk 0:00:30.2]}
47. Rg3 {[%clk 0:00:14.1]} 47... Ra2 {[%clk 0:00:27.3]} 48. h3 {[%clk
0:00:12.6]} 48... b6 {[%clk 0:00:27.2]} 49. Nd7+ {[%clk 0:00:11.1]} 49... Kf5
{[%clk 0:00:26.3]} 50. Rd3 {[%clk 0:00:01.4]} 50... Rxg2+ {[%clk 0:00:23.5]} 51.
Kf1 {[%clk 0:00:01.5]} 51... Bc4 {[%clk 0:00:22.7]} 0-1

[Event "Early-Titled-Tuesday-Blitz-August-29-2023"]
[Site "Chess.com"]
[Date "2023.08.29"]
[Round "11"]
[White "joksijoksi"]
[Black "AndresDelgado77"]
[Result "1-0"]
[WhiteElo "2458"]
[BlackElo "2256"]
[TimeControl "180+1"]
[EndTime "10:04:06 PDT"]
[Termination "joksijoksi won on time"]

1. d4 {[%clk 0:03:00.9]} 1... Nf6 {[%clk 0:02:59.6]} 2. c4 {[%clk 0:02:59.9]}
2... e5 {[%clk 0:02:54.8]} 3. dxe5 {[%clk 0:02:59.3]} 3... Ng4 {[%clk
0:02:55.2]} 4. e4 {[%clk 0:03:00]} 4... d6 {[%clk 0:02:54.7]} 5. exd6 {[%clk
0:02:29.3]} 5... Bxd6 {[%clk 0:02:53.7]} 6. Be2 {[%clk 0:02:20.4]} 6... Nf6
{[%clk 0:02:40.6]} 7. Nc3 {[%clk 0:02:18]} 7... O-O {[%clk 0:02:37.8]} 8. Nf3
{[%clk 0:02:16.4]} 8... Qe7 {[%clk 0:02:29.5]} 9. Bg5 {[%clk 0:02:04.2]} 9...
Rd8 {[%clk 0:02:18.4]} 10. Qc2 {[%clk 0:01:58.9]} 10... Bb4 {[%clk 0:02:06.7]}
11. e5 {[%clk 0:01:52.3]} 11... Bxc3+ {[%clk 0:01:53]} 12. bxc3 {[%clk
0:01:41.2]} 12... Re8 {[%clk 0:01:39.4]} 13. exf6 {[%clk 0:01:39.2]} 13... gxf6
{[%clk 0:01:38.3]} 14. Be3 {[%clk 0:01:38.6]} 14... f5 {[%clk 0:01:36.8]} 15.
Nd4 {[%clk 0:01:17.7]} 15... Qe5 {[%clk 0:01:16]} 16. g3 {[%clk 0:00:59.8]}
16... c5 {[%clk 0:01:11.5]} 17. Nf3 {[%clk 0:00:59.7]} 17... Qg7 {[%clk
0:01:07.2]} 18. O-O {[%clk 0:00:57]} 18... b6 {[%clk 0:01:02.4]} 19. Nh4 {[%clk
0:00:48.5]} 19... Qf6 {[%clk 0:00:49.8]} 20. Bf3 {[%clk 0:00:44.1]} 20... Nc6
{[%clk 0:00:49.9]} 21. Bg5 {[%clk 0:00:33.4]} 21... Qxg5 {[%clk 0:00:31.6]} 22.
Bxc6 {[%clk 0:00:33.1]} 22... Be6 {[%clk 0:00:32.1]} 23. Bxa8 {[%clk 0:00:26.7]}
23... Rxa8 {[%clk 0:00:31.4]} 24. Rad1 {[%clk 0:00:25.6]} 24... Bxc4 {[%clk
0:00:29.6]} 25. Rfe1 {[%clk 0:00:23.8]} 25... Be6 {[%clk 0:00:27.1]} 26. Qd2
{[%clk 0:00:22.7]} 26... Qf6 {[%clk 0:00:25]} 27. Qe3 {[%clk 0:00:18.9]} 27...
Re8 {[%clk 0:00:17.3]} 28. Qe5 {[%clk 0:00:17.5]} 28... Kg7 {[%clk 0:00:13.8]}
29. Qxf6+ {[%clk 0:00:17.5]} 29... Kxf6 {[%clk 0:00:14.2]} 30. Nf3 {[%clk
0:00:17.9]} 30... Rc8 {[%clk 0:00:12.5]} 31. Rd2 {[%clk 0:00:16.8]} 31... b5
{[%clk 0:00:11.9]} 32. Nh4 {[%clk 0:00:15.9]} 32... a5 {[%clk 0:00:11]} 33. Red1
{[%clk 0:00:15.6]} 33... b4 {[%clk 0:00:10.9]} 34. cxb4 {[%clk 0:00:15.6]} 34...
cxb4 {[%clk 0:00:10.8]} 35. Rb2 {[%clk 0:00:15.6]} 35... Rb8 {[%clk 0:00:09.2]}
36. Nf3 {[%clk 0:00:15]} 36... a4 {[%clk 0:00:09]} 37. Nd4 {[%clk 0:00:15.3]}
37... Bc4 {[%clk 0:00:07.9]} 38. Nc6 {[%clk 0:00:14.2]} 38... Rb6 {[%clk
0:00:07.3]} 39. Nxb4 {[%clk 0:00:13.7]} 39... a3 {[%clk 0:00:07.3]} 40. Nd5+
{[%clk 0:00:09.3]} 40... Bxd5 {[%clk 0:00:07.6]} 41. Rxb6+ {[%clk 0:00:09.9]}
41... Kg7 {[%clk 0:00:08.5]} 42. Rd2 {[%clk 0:00:09.8]} 42... Be6 {[%clk
0:00:08.4]} 43. Rxe6 {[%clk 0:00:09.8]} 43... h5 {[%clk 0:00:09.1]} 44. Re7
{[%clk 0:00:09.3]} 44... Kf6 {[%clk 0:00:09.2]} 45. Rdd7 {[%clk 0:00:10]} 45...
f4 {[%clk 0:00:08.3]} 46. Rxf7+ {[%clk 0:00:10.5]} 46... Ke5 {[%clk 0:00:08.8]}
47. gxf4+ {[%clk 0:00:09.7]} 1-0

[Event "Early-Titled-Tuesday-Blitz-August-29-2023"]
[Site "Chess.com"]
[Date "2023.08.29"]
[Round "11"]
[White "GalaxyRoman"]
[Black "borocotoajua"]
[Result "1-0"]
[WhiteElo "2694"]
[BlackElo "2478"]
[TimeControl "180+1"]
[EndTime "10:04:07 PDT"]
[Termination "GalaxyRoman won on time"]

1. e4 {[%clk 0:02:49]} 1... c6 {[%clk 0:02:59.6]} 2. Nc3 {[%clk 0:02:49]} 2...
d5 {[%clk 0:02:59.5]} 3. Nf3 {[%clk 0:02:49.9]} 3... Bg4 {[%clk 0:02:58.6]} 4.
h3 {[%clk 0:02:50]} 4... Bxf3 {[%clk 0:02:58.7]} 5. Qxf3 {[%clk 0:02:50.9]} 5...
e6 {[%clk 0:02:58.9]} 6. d3 {[%clk 0:02:51.3]} 6... Nd7 {[%clk 0:02:58.1]} 7.
Be2 {[%clk 0:02:51.5]} 7... Ngf6 {[%clk 0:02:51.6]} 8. O-O {[%clk 0:02:51.2]}
8... d4 {[%clk 0:02:46.6]} 9. Nb1 {[%clk 0:02:50.7]} 9... Bd6 {[%clk 0:02:38.2]}
10. g3 {[%clk 0:02:46.8]} 10... Qc7 {[%clk 0:02:33.4]} 11. Nd2 {[%clk
0:02:45.9]} 11... b5 {[%clk 0:02:32.4]} 12. Qg2 {[%clk 0:02:44.3]} 12... e5
{[%clk 0:02:15.3]} 13. a4 {[%clk 0:02:42.9]} 13... O-O {[%clk 0:02:10.3]} 14. g4
{[%clk 0:02:39.9]} 14... Nc5 {[%clk 0:02:04.8]} 15. a5 {[%clk 0:02:36.4]} 15...
Ne6 {[%clk 0:02:03.5]} 16. Nf3 {[%clk 0:02:35.1]} 16... Nd7 {[%clk 0:01:58.3]}
17. Nh4 {[%clk 0:02:31.5]} 17... g6 {[%clk 0:01:55.2]} 18. Kh1 {[%clk
0:02:29.3]} 18... Qd8 {[%clk 0:01:49.2]} 19. Nf5 {[%clk 0:02:26.9]} 19... gxf5
{[%clk 0:01:33.5]} 20. gxf5+ {[%clk 0:02:27.8]} 20... Kh8 {[%clk 0:01:33.5]} 21.
fxe6 {[%clk 0:02:21.5]} 21... fxe6 {[%clk 0:01:33.6]} 22. Bg4 {[%clk 0:01:44.1]}
22... Rg8 {[%clk 0:01:28.4]} 23. Qf3 {[%clk 0:01:42.1]} 23... Qe7 {[%clk
0:01:19.7]} 24. Bd2 {[%clk 0:01:25.6]} 24... Raf8 {[%clk 0:01:19.5]} 25. Qe2
{[%clk 0:01:24.1]} 25... Rf6 {[%clk 0:00:36.2]} 26. Rg1 {[%clk 0:01:18.9]} 26...
Nf8 {[%clk 0:00:36.1]} 27. f4 {[%clk 0:01:02.2]} 27... Ng6 {[%clk 0:00:31.5]}
28. f5 {[%clk 0:01:00]} 28... exf5 {[%clk 0:00:23.4]} 29. Bxf5 {[%clk
0:00:58.3]} 29... Nf4 {[%clk 0:00:14]} 30. Rxg8+ {[%clk 0:00:55.8]} 30... Kxg8
{[%clk 0:00:14.3]} 31. Rg1+ {[%clk 0:00:55.3]} 31... Kh8 {[%clk 0:00:14.8]} 32.
Qg4 {[%clk 0:00:51.4]} 32... Rf8 {[%clk 0:00:12.7]} 33. Be1 {[%clk 0:00:37.1]}
33... Qf7 {[%clk 0:00:13.1]} 34. Bh4 {[%clk 0:00:34.8]} 34... Be7 {[%clk
0:00:11.2]} 35. Bg3 {[%clk 0:00:04.3]} 35... Rg8 {[%clk 0:00:10.8]} 36. Qf3
{[%clk 0:00:04.4]} 36... Ng6 {[%clk 0:00:08.7]} 37. Qg4 {[%clk 0:00:02.9]} 37...
Nf4 {[%clk 0:00:08.5]} 38. Qf3 {[%clk 0:00:03.3]} 38... Ng6 {[%clk 0:00:09]} 39.
Qf2 {[%clk 0:00:03.3]} 39... Bd6 {[%clk 0:00:05.6]} 40. Qh2 {[%clk 0:00:03]}
40... Re8 {[%clk 0:00:04.8]} 41. Rf1 {[%clk 0:00:02.7]} 41... Qe7 {[%clk
0:00:04.2]} 42. Qf2 {[%clk 0:00:03.2]} 42... Rf8 {[%clk 0:00:04.3]} 43. Qg2
{[%clk 0:00:03.4]} 43... Nf4 {[%clk 0:00:04.8]} 44. Bxf4 {[%clk 0:00:03.7]}
44... exf4 {[%clk 0:00:05.7]} 45. Rg1 {[%clk 0:00:04.5]} 45... Be5 {[%clk
0:00:05.3]} 46. Qg4 {[%clk 0:00:03.1]} 46... Qf6 {[%clk 0:00:03.3]} 47. Qh5
{[%clk 0:00:03.3]} 47... Rf7 {[%clk 0:00:01.3]} 48. Rg6 {[%clk 0:00:02.6]} 1-0

[Event "Early-Titled-Tuesday-Blitz-August-29-2023"]
[Site "Chess.com"]
[Date "2023.08.29"]
[Round "11"]
[White "AlexandraSamaganova"]
[Black "CraiggoryC"]
[Result "0-1"]
[WhiteElo "2310"]
[BlackElo "2216"]
[TimeControl "180+1"]
[EndTime "10:04:07 PDT"]
[Termination "CraiggoryC won on time"]

1. c4 {[%clk 0:03:00.9]} 1... e6 {[%clk 0:03:00]} 2. Nc3 {[%clk 0:02:57.1]} 2...
d5 {[%clk 0:03:00.5]} 3. e3 {[%clk 0:02:56.8]} 3... Nf6 {[%clk 0:03:00.1]} 4.
Nf3 {[%clk 0:02:56.2]} 4... c5 {[%clk 0:02:54.4]} 5. d4 {[%clk 0:02:55.8]} 5...
Nc6 {[%clk 0:02:52.9]} 6. cxd5 {[%clk 0:02:53.4]} 6... exd5 {[%clk 0:02:48.7]}
7. Bd3 {[%clk 0:02:51.7]} 7... Be7 {[%clk 0:02:43.3]} 8. O-O {[%clk 0:02:51.4]}
8... O-O {[%clk 0:02:43]} 9. h3 {[%clk 0:02:50.4]} 9... b6 {[%clk 0:02:31]} 10.
b3 {[%clk 0:02:42.4]} 10... Re8 {[%clk 0:02:20.7]} 11. Bb2 {[%clk 0:02:38.8]}
11... cxd4 {[%clk 0:02:17.2]} 12. Nxd4 {[%clk 0:02:33.2]} 12... Nxd4 {[%clk
0:02:15.8]} 13. exd4 {[%clk 0:02:33.5]} 13... Bd6 {[%clk 0:01:40.9]} 14. Re1
{[%clk 0:02:19.8]} 14... Rxe1+ {[%clk 0:01:37.9]} 15. Qxe1 {[%clk 0:02:19.6]}
15... Be6 {[%clk 0:01:21.2]} 16. Rc1 {[%clk 0:02:06.4]} 16... Rc8 {[%clk
0:01:16.3]} 17. Qe3 {[%clk 0:02:03.5]} 17... Bb8 {[%clk 0:01:14.9]} 18. Ne2
{[%clk 0:01:33.4]} 18... Rxc1+ {[%clk 0:01:14.1]} 19. Qxc1 {[%clk 0:01:28.8]}
19... Qd6 {[%clk 0:01:14.1]} 20. f4 {[%clk 0:01:10.7]} 20... Ne4 {[%clk
0:01:04.6]} 21. Ba3 {[%clk 0:00:58.6]} 21... Qc7 {[%clk 0:00:59.6]} 22. Qxc7
{[%clk 0:00:51.7]} 22... Bxc7 {[%clk 0:01:00.5]} 23. Bxe4 {[%clk 0:00:46.1]}
23... dxe4 {[%clk 0:01:01.4]} 24. Nc3 {[%clk 0:00:44.9]} 24... Bxf4 {[%clk
0:00:58.5]} 25. Nxe4 {[%clk 0:00:40.5]} 25... Be3+ {[%clk 0:00:58.8]} 26. Kf1
{[%clk 0:00:40.3]} 26... Bxd4 {[%clk 0:00:59.4]} 27. Bd6 {[%clk 0:00:36.6]}
27... h6 {[%clk 0:00:55.5]} 28. Bb8 {[%clk 0:00:36.2]} 28... a6 {[%clk
0:00:53.8]} 29. Ba7 {[%clk 0:00:31.3]} 29... Kf8 {[%clk 0:00:50.4]} 30. Nd2
{[%clk 0:00:24.4]} 30... Ke7 {[%clk 0:00:48.8]} 31. Ke2 {[%clk 0:00:22.4]} 31...
Bd5 {[%clk 0:00:47.3]} 32. g3 {[%clk 0:00:19.7]} 32... Kd7 {[%clk 0:00:44]} 33.
Bb8 {[%clk 0:00:18.5]} 33... Kc6 {[%clk 0:00:41.8]} 34. h4 {[%clk 0:00:14.5]}
34... Bc5 {[%clk 0:00:41.7]} 35. Be5 {[%clk 0:00:13.6]} 35... f6 {[%clk
0:00:39.8]} 36. Bc3 {[%clk 0:00:13.3]} 36... h5 {[%clk 0:00:39.3]} 37. b4 {[%clk
0:00:08.1]} 37... Be7 {[%clk 0:00:38.3]} 38. a4 {[%clk 0:00:08.4]} 38... g6
{[%clk 0:00:36.2]} 39. Kd3 {[%clk 0:00:07.4]} 39... f5 {[%clk 0:00:35.6]} 40.
Nf1 {[%clk 0:00:07.3]} 40... b5 {[%clk 0:00:35.1]} 41. axb5+ {[%clk 0:00:07.2]}
41... axb5 {[%clk 0:00:35.2]} 42. Ne3 {[%clk 0:00:07.2]} 42... Be6 {[%clk
0:00:35.4]} 43. Nc2 {[%clk 0:00:06.9]} 43... Bc4+ {[%clk 0:00:29.3]} 44. Ke3
{[%clk 0:00:05.9]} 44... Bd6 {[%clk 0:00:29.2]} 45. Be1 {[%clk 0:00:04.9]} 45...
Kd5 {[%clk 0:00:27.9]} 46. Nd4 {[%clk 0:00:04.7]} 46... Be5 {[%clk 0:00:23.6]}
47. Nf3 {[%clk 0:00:05]} 47... Bf6 {[%clk 0:00:23.2]} 48. Nd2 {[%clk 0:00:03.6]}
48... Ba2 {[%clk 0:00:22.6]} 49. Nf3 {[%clk 0:00:03.2]} 49... Bc4 {[%clk
0:00:22.3]} 50. Nd2 {[%clk 0:00:03.2]} 50... Ba2 {[%clk 0:00:19.2]} 51. Nf3
{[%clk 0:00:03.5]} 51... Bb1 {[%clk 0:00:19.7]} 52. Nd2 {[%clk 0:00:02.8]} 52...
Be4 {[%clk 0:00:19.9]} 53. Nb3 {[%clk 0:00:03]} 53... Kc4 {[%clk 0:00:19.3]} 54.
Nc5 {[%clk 0:00:03.4]} 54... Bc3 {[%clk 0:00:18.1]} 55. Na6 {[%clk 0:00:03]}
55... Bxe1 {[%clk 0:00:17.5]} 0-1

[Event "Early-Titled-Tuesday-Blitz-August-29-2023"]
[Site "Chess.com"]
[Date "2023.08.29"]
[Round "11"]
[White "nassimzrikem"]
[Black "Chessdreamer2020"]
[Result "0-1"]
[WhiteElo "2130"]
[BlackElo "2542"]
[TimeControl "180+1"]
[EndTime "10:04:09 PDT"]
[Termination "Chessdreamer2020 won on time"]

1. d4 {[%clk 0:03:00.9]} 1... d6 {[%clk 0:02:59.5]} 2. e4 {[%clk 0:03:00.4]}
2... Nf6 {[%clk 0:02:59.5]} 3. Nc3 {[%clk 0:03:00.1]} 3... c6 {[%clk 0:02:59]}
4. f3 {[%clk 0:02:59.9]} 4... d5 {[%clk 0:02:58.4]} 5. e5 {[%clk 0:02:59.1]}
5... Ng8 {[%clk 0:02:58.7]} 6. Nce2 {[%clk 0:02:55.3]} 6... h5 {[%clk
0:02:58.5]} 7. c3 {[%clk 0:02:55.6]} 7... g6 {[%clk 0:02:58.7]} 8. Nf4 {[%clk
0:02:45.5]} 8... e6 {[%clk 0:02:50.6]} 9. Qc2 {[%clk 0:02:43.4]} 9... Ne7 {[%clk
0:02:50]} 10. h4 {[%clk 0:02:37.4]} 10... b6 {[%clk 0:02:49.4]} 11. Bd3 {[%clk
0:02:37.3]} 11... Ba6 {[%clk 0:02:46.5]} 12. Ngh3 {[%clk 0:02:26.6]} 12... Bxd3
{[%clk 0:02:45.8]} 13. Qxd3 {[%clk 0:02:27.5]} 13... Bh6 {[%clk 0:02:42.5]} 14.
Ng5 {[%clk 0:02:25.7]} 14... Qc8 {[%clk 0:02:39.9]} 15. g4 {[%clk 0:02:21]}
15... hxg4 {[%clk 0:02:39.3]} 16. Ngxe6 {[%clk 0:02:12.1]} 16... fxe6 {[%clk
0:02:37.6]} 17. Nxg6 {[%clk 0:02:12.6]} 17... Bxc1 {[%clk 0:02:36.2]} 18. Nxh8
{[%clk 0:02:10.8]} 18... Bxb2 {[%clk 0:02:25.2]} 19. Rb1 {[%clk 0:02:10.1]}
19... Ba3 {[%clk 0:02:25.3]} 20. h5 {[%clk 0:01:57.1]} 20... Qa6 {[%clk
0:02:24.5]} 21. Kd2 {[%clk 0:01:54.1]} 21... Qxd3+ {[%clk 0:02:18.8]} 22. Kxd3
{[%clk 0:01:55]} 22... gxf3 {[%clk 0:02:19.7]} 23. h6 {[%clk 0:01:55.1]} 23...
Nd7 {[%clk 0:02:15.5]} 24. h7 {[%clk 0:01:54.8]} 24... Nf8 {[%clk 0:02:12.9]}
25. Nf7 {[%clk 0:01:44.8]} 25... Neg6 {[%clk 0:01:56.8]} 26. h8=Q {[%clk
0:01:39.7]} 26... Nxh8 {[%clk 0:01:56.7]} 27. Nxh8 {[%clk 0:01:36.4]} 27... c5
{[%clk 0:01:56.3]} 28. Rbf1 {[%clk 0:01:35.3]} 28... cxd4 {[%clk 0:01:51.9]} 29.
cxd4 {[%clk 0:01:34.2]} 29... Rc8 {[%clk 0:01:51.6]} 30. Rxf3 {[%clk 0:01:34.5]}
30... Bb2 {[%clk 0:01:50.9]} 31. Rhf1 {[%clk 0:00:59.8]} 31... Rc3+ {[%clk
0:01:47.3]} 32. Kd2 {[%clk 0:00:58.3]} 32... Rxf3 {[%clk 0:01:47.2]} 33. Rxf3
{[%clk 0:00:59.2]} 33... Bxd4 {[%clk 0:01:48.1]} 34. Nf7 {[%clk 0:00:58.1]}
34... Nd7 {[%clk 0:01:38.8]} 35. Nd6+ {[%clk 0:00:53.5]} 35... Kd8 {[%clk
0:01:38.9]} 36. Nb5 {[%clk 0:00:44.7]} 36... Bxe5 {[%clk 0:01:37.1]} 37. Nxa7
{[%clk 0:00:42.9]} 37... Kc7 {[%clk 0:01:21.9]} 38. Rf7 {[%clk 0:00:43.5]} 38...
Bg3 {[%clk 0:01:02.6]} 39. a4 {[%clk 0:00:41.3]} 39... e5 {[%clk 0:01:01.1]} 40.
Rg7 {[%clk 0:00:39.4]} 40... Bf4+ {[%clk 0:01:00.5]} 41. Kd3 {[%clk 0:00:40]}
41... Kd6 {[%clk 0:00:57.4]} 42. Nb5+ {[%clk 0:00:39.1]} 42... Kc6 {[%clk
0:00:55.9]} 43. Rg6+ {[%clk 0:00:37.8]} 43... Kb7 {[%clk 0:00:55.4]} 44. Ke2
{[%clk 0:00:29.1]} 44... Nc5 {[%clk 0:00:55.2]} 45. Rg7+ {[%clk 0:00:24.7]}
45... Kb8 {[%clk 0:00:53.9]} 46. Rg8+ {[%clk 0:00:23]} 46... Kb7 {[%clk
0:00:53.1]} 47. Rg7+ {[%clk 0:00:23.7]} 47... Kc8 {[%clk 0:00:46.2]} 48. Rc7+
{[%clk 0:00:12.9]} 48... Kb8 {[%clk 0:00:43.9]} 49. Rf7 {[%clk 0:00:11.5]} 49...
d4 {[%clk 0:00:41.5]} 50. Rf8+ {[%clk 0:00:11.6]} 50... Kb7 {[%clk 0:00:41.3]}
51. Rf7+ {[%clk 0:00:12.1]} 51... Kc8 {[%clk 0:00:41.9]} 52. Nd6+ {[%clk
0:00:11.3]} 52... Kb8 {[%clk 0:00:38.8]} 53. Nc4 {[%clk 0:00:05.2]} 53... d3+
{[%clk 0:00:37.8]} 54. Kd1 {[%clk 0:00:05]} 54... Nxa4 {[%clk 0:00:37.2]} 55.
Rf6 {[%clk 0:00:05.2]} 55... Kb7 {[%clk 0:00:36.5]} 56. Re6 {[%clk 0:00:04.9]}
56... e4 {[%clk 0:00:35.4]} 57. Rxe4 {[%clk 0:00:04]} 57... Nc3+ {[%clk
0:00:35.7]} 0-1

[Event "Early-Titled-Tuesday-Blitz-August-29-2023"]
[Site "Chess.com"]
[Date "2023.08.29"]
[Round "11"]
[White "LangesNasenhaar"]
[Black "Goryachkina"]
[Result "0-1"]
[WhiteElo "2480"]
[BlackElo "2642"]
[TimeControl "180+1"]
[EndTime "10:04:11 PDT"]
[Termination "Goryachkina won by resignation"]

1. d4 {[%clk 0:03:00.9]} 1... Nf6 {[%clk 0:02:59.5]} 2. Nc3 {[%clk 0:03:00.9]}
2... e6 {[%clk 0:02:58.2]} 3. e4 {[%clk 0:03:00.2]} 3... d5 {[%clk 0:02:58.2]}
4. Qd3 {[%clk 0:03:00.1]} 4... Bb4 {[%clk 0:02:43.8]} 5. e5 {[%clk 0:02:57.8]}
5... Nfd7 {[%clk 0:02:40]} 6. a3 {[%clk 0:02:57.7]} 6... Be7 {[%clk 0:02:38.8]}
7. Qg3 {[%clk 0:02:51]} 7... g6 {[%clk 0:02:32.5]} 8. h4 {[%clk 0:02:47.9]} 8...
c5 {[%clk 0:02:32.3]} 9. dxc5 {[%clk 0:02:41.4]} 9... Nc6 {[%clk 0:02:29.7]} 10.
h5 {[%clk 0:02:40.1]} 10... g5 {[%clk 0:02:27.9]} 11. Bb5 {[%clk 0:02:29.6]}
11... h6 {[%clk 0:02:20.6]} 12. f4 {[%clk 0:02:12.2]} 12... Nxc5 {[%clk
0:02:14.7]} 13. Nf3 {[%clk 0:01:59.1]} 13... d4 {[%clk 0:02:09.8]} 14. Bxc6+
{[%clk 0:01:43.5]} 14... bxc6 {[%clk 0:02:10.2]} 15. Ne2 {[%clk 0:01:43.8]}
15... d3 {[%clk 0:02:09.3]} 16. Ned4 {[%clk 0:01:37.7]} 16... Ne4 {[%clk
0:02:02.9]} 17. Qh2 {[%clk 0:01:37.7]} 17... d2+ {[%clk 0:01:52]} 18. Bxd2
{[%clk 0:01:23.8]} 18... Nxd2 {[%clk 0:01:51.8]} 19. O-O-O {[%clk 0:01:21.6]}
19... Nxf3 {[%clk 0:01:47]} 20. gxf3 {[%clk 0:01:17.3]} 20... Qb6 {[%clk
0:01:41.2]} 21. fxg5 {[%clk 0:01:14.3]} 21... c5 {[%clk 0:01:37.7]} 22. Nb3
{[%clk 0:01:00.7]} 22... Bxg5+ {[%clk 0:01:35.1]} 23. f4 {[%clk 0:01:00.4]}
23... Be7 {[%clk 0:01:34.8]} 24. Qg2 {[%clk 0:00:52.1]} 24... Rb8 {[%clk
0:01:34.1]} 25. Qg7 {[%clk 0:00:29.9]} 25... Rf8 {[%clk 0:01:33.6]} 26. Rh3
{[%clk 0:00:28.8]} 26... c4 {[%clk 0:01:28.7]} 27. Qxh6 {[%clk 0:00:29.2]} 27...
Bd7 {[%clk 0:00:50.7]} 28. Qg7 {[%clk 0:00:23.6]} 28... Qf2 {[%clk 0:00:50.2]}
29. h6 {[%clk 0:00:14.5]} 29... Qxf4+ {[%clk 0:00:49.3]} 30. Nd2 {[%clk
0:00:09.2]} 30... Qg5 {[%clk 0:00:36.4]} 31. Qxg5 {[%clk 0:00:02.1]} 31... Bxg5
{[%clk 0:00:36.4]} 32. h7 {[%clk 0:00:03]} 32... Rh8 {[%clk 0:00:35.3]} 33. Rg1
{[%clk 0:00:03.3]} 33... Bxd2+ {[%clk 0:00:31.5]} 34. Kxd2 {[%clk 0:00:04.2]}
34... Ke7 {[%clk 0:00:31.9]} 35. Kc3 {[%clk 0:00:03.1]} 35... Bc6 {[%clk
0:00:28.2]} 36. Rg7 {[%clk 0:00:02.8]} 36... Be4 {[%clk 0:00:27.2]} 37. Rh4
{[%clk 0:00:02.2]} 37... Bg6 {[%clk 0:00:17.7]} 38. Rxc4 {[%clk 0:00:02.1]}
38... Kf8 {[%clk 0:00:16]} 39. Rg8+ {[%clk 0:00:01.7]} 39... Rxg8 {[%clk
0:00:16.4]} 40. hxg8=Q+ {[%clk 0:00:01.8]} 40... Kxg8 {[%clk 0:00:17.3]} 41. Rc7
{[%clk 0:00:02.2]} 41... a5 {[%clk 0:00:16.8]} 42. b4 {[%clk 0:00:02.8]} 42...
axb4+ {[%clk 0:00:16.4]} 43. axb4 {[%clk 0:00:03.7]} 43... Rb5 {[%clk 0:00:16]}
44. Kb3 {[%clk 0:00:02.2]} 44... Rxe5 {[%clk 0:00:15.6]} 45. c4 {[%clk
0:00:02.9]} 45... Be4 {[%clk 0:00:15.6]} 46. b5 {[%clk 0:00:02.9]} 46... f5
{[%clk 0:00:15.6]} 47. c5 {[%clk 0:00:02.9]} 47... f4 {[%clk 0:00:15.5]} 48. Kb4
{[%clk 0:00:03.4]} 48... f3 {[%clk 0:00:15.7]} 49. Rc8+ {[%clk 0:00:01.8]} 49...
Kg7 {[%clk 0:00:15.6]} 50. Rc7+ {[%clk 0:00:02]} 50... Kg6 {[%clk 0:00:16.1]}
51. Rc8 {[%clk 0:00:02.6]} 51... f2 {[%clk 0:00:16.5]} 52. Rf8 {[%clk
0:00:02.5]} 52... Bf5 {[%clk 0:00:16.7]} 53. Rg8+ {[%clk 0:00:03.4]} 53... Kf7
{[%clk 0:00:16.4]} 0-1